bitfinex/quotes_SOLUSD_20240612
["timestamp","ask_amount","ask_price","bid_price","bid_amount"]
[1718220240366,4.6921,157.71,157.66,10.0]
[1718220240651,2.3469,157.65,157.64,10.0]
[1718220240824,4.6927,157.69,157.64,10.0]
[1718220241024,0.34,157.68,157.59,6.9747]
[1718220241229,0.34,157.68,157.57,10.0]
[1718220241230,7.2106,157.66,157.57,10.0]
[1718220241431,27.211,157.65,157.57,10.0]
[1718220241652,2.3478,157.6,157.57,10.0]
[1718220241852,11.9057,157.64,157.57,10.0]
[1718220241853,2.3475,157.61,157.57,10.0]
[1718220242025,4.6948,157.62,157.57,10.0]
[1718220242226,7.0438,157.59,157.51,10.0]
[1718220242425,0.17,157.57,157.51,10.0]
[1718220242726,4.6967,157.56,157.51,10.0]
[1718220242927,20.0,157.56,157.51,10.0]
[1718220243142,2.3487,157.53,157.51,10.0]
[1718220243344,24.6968,157.56,157.51,10.0]
[1718220243345,2.3489,157.52,157.51,10.0]
[1718220243558,2.3488,157.53,157.49,16.7429]
[1718220243930,22.3486,157.54,157.49,6.7429]
[1718220244230,12.251,157.57,157.49,10.0]
[1718220244231,0.17,157.55,157.49,10.0]
[1718220244431,2.3487,157.53,157.49,10.0]
[1718220245125,2.3491,157.51,157.47,10.0]
[1718220245643,20.0,157.54,157.47,10.0]
[1718220245834,20.0,157.54,157.49,10.0]
[1718220246034,20.0,157.55,157.49,10.0]
[1718220246222,9.73142207,157.61,157.52,10.0]
[1718220246424,9.73142207,157.61,157.51,10.0]
[1718220246425,4.6954,157.6,157.51,10.0]
[1718220247041,4.6948,157.62,157.53,10.0]
[1718220247252,28.3694,157.63,157.53,10.0]
[1718220247459,28.3694,157.63,157.46,16.4481]
[1718220247460,11.7395,157.59,157.5,10.0]
[1718220247756,2.3482,157.57,157.5,2.3491]
[1718220247963,5.16078232,157.63,157.54,10.0]
[1718220248130,2.3477,157.6,157.54,10.0]
[1718220248330,2.3484,157.56,157.52,10.0]
[1718220248631,14.65137024,157.66,157.52,10.0]
[1718220248632,9.3909,157.6,157.52,10.0]
[1718220248946,4.6958,157.59,157.52,10.0]
[1718220249147,4.6952,157.61,157.54,10.0]
[1718220249351,2.348,157.58,157.54,10.0]
[1718220249544,2.3481,157.58,157.54,10.0]
[1718220249724,20.0,157.6,157.54,10.0]
[1718220249932,2.3483,157.56,157.54,10.0]
[1718220250339,2.3485,157.55,157.49,10.0]
[1718220250541,2.3485,157.55,157.52,10.0]
[1718220250743,20.0,157.57,157.5,10.0]
[1718220250943,2.3483,157.56,157.52,10.0]
[1718220251738,20.0,157.59,157.52,10.0]
[1718220251938,2.3483,157.56,157.52,10.0]
[1718220252251,2.3486,157.54,157.52,10.0]
[1718220253072,20.0,157.57,157.52,10.0]
[1718220253372,20.0,157.57,157.54,10.0]
[1718220253544,2.3481,157.57,157.54,10.0]
[1718220253739,2.348,157.58,157.54,10.0]
[1718220253944,4.6955,157.6,157.54,10.0]
[1718220254250,2.3484,157.56,157.54,10.0]
[1718220254451,2.3484,157.55,157.54,10.0]
[1718220254653,0.17,157.57,157.5,10.0]
[1718220254972,2.349,157.52,157.5,10.0]
[1718220255353,20.0,157.54,157.48,10.0]
[1718220255786,2.3489,157.52,157.48,10.0]
[1718220256156,2.349,157.51,157.48,10.0]
[1718220256862,2.3492,157.5,157.48,10.0]
[1718220257557,2.3491,157.51,157.48,10.0]
[1718220258381,31.7432,157.54,157.48,10.0]
[1718220258382,2.3489,157.52,157.48,10.0]
[1718220258559,20.0,157.54,157.48,10.0]
[1718220259074,2.3488,157.53,157.48,10.0]
[1718220259301,4.6964,157.57,157.5,10.0]
[1718220259586,2.3484,157.55,157.52,10.0]
[1718220259768,2.3483,157.56,157.5,12.3491]
[1718220260092,2.3483,157.56,157.46,11.7487]
[1718220260093,2.348,157.58,157.54,10.0]
[1718220260394,5.07645415,157.6,157.54,10.0]
[1718220260762,2.3481,157.58,157.54,10.0]
[1718220260989,4.6952,157.61,157.54,10.0]
[1718220261290,2.3484,157.55,157.54,10.0]
[1718220261595,18.98,157.6,157.52,10.0]
[1718220261755,2.3487,157.53,157.52,10.0]
[1718220261959,4.6967,157.56,157.52,10.0]
[1718220262261,4.6967,157.56,157.45,4.6997]
[1718220262262,4.6972,157.54,157.48,10.0]
[1718220262570,16.4425,157.52,157.46,10.0]
[1718220262780,0.34,157.53,157.46,10.0]
[1718220262781,20.0,157.51,157.46,10.0]
[1718220262966,2.3492,157.5,157.48,10.0]
[1718220263171,4.6984,157.5,157.46,10.0]
[1718220263361,2.3494,157.49,157.46,10.0]
[1718220263572,2.3491,157.51,157.46,10.0]
[1718220263782,2.3492,157.5,157.48,10.0]
[1718220263990,2.3491,157.51,157.48,10.0]
[1718220264281,20.0,157.53,157.48,10.0]
[1718220264669,2.3489,157.52,157.48,10.0]
[1718220265361,9.5645,157.54,157.48,10.0]
[1718220265556,20.17,157.55,157.48,10.0]
[1718220265557,27.0456,157.55,157.48,10.0]
[1718220265755,2.349,157.52,157.48,10.0]
[1718220265983,20.0,157.53,157.5,10.0]
[1718220266178,22.3488,157.53,157.5,10.0]
[1718220266380,2.3488,157.53,157.5,10.0]
[1718220266585,2.3486,157.54,157.5,10.0]
[1718220267182,22.3485,157.55,157.5,10.0]
[1718220267474,11.7405,157.58,157.5,12.3491]
[1718220267475,2.3483,157.56,157.5,12.3491]
[1718220267779,9.3909,157.6,157.44,25.0724]
[1718220267780,26.9836,157.63,157.54,10.0]
[1718220267981,2.3483,157.56,157.54,10.0]
[1718220268375,2.3484,157.55,157.54,10.0]
[1718220268585,2.3482,157.57,157.54,10.0]
[1718220268777,18.98,157.6,157.52,17.1824]
[1718220268983,22.62107042,157.63,157.52,17.1824]
[1718220268984,4.6969,157.55,157.52,10.0]
[1718220269163,7.0462,157.53,157.52,10.0]
[1718220269374,7.0462,157.53,157.45,10.0]
[1718220269375,20.0,157.53,157.45,10.0]
[1718220269684,2.3495,157.48,157.47,10.0]
[1718220270111,2.3495,157.48,157.44,34.6914]
[1718220270395,4.6991,157.48,157.42,10.0]
[1718220270580,20.0,157.48,157.42,10.0]
[1718220270891,20.0,157.48,157.44,10.0]
[1718220271079,11.9177,157.48,157.42,10.0]
[1718220271271,20.0,157.47,157.42,10.0]
[1718220271467,20.0,157.47,157.4,6.604]
[1718220271468,16.4499,157.45,157.4,6.604]
[1718220271671,16.4499,157.45,157.36,28.1311]
[1718220271672,0.17,157.46,157.38,10.0]
[1718220271887,0.17,157.46,157.37,6.9592]
[1718220271888,2.3503,157.43,157.4,10.0]
[1718220272076,2.3503,157.43,157.38,10.0]
[1718220272289,25.0397,157.46,157.38,10.0]
[1718220272290,2.3505,157.41,157.38,10.0]
[1718220272473,2.3504,157.42,157.38,10.0]
[1718220272973,2.3502,157.43,157.38,10.0]
[1718220273372,2.3506,157.41,157.38,10.0]
[1718220273574,2.3503,157.43,157.38,10.0]
[1718220273780,22.3501,157.44,157.38,10.0]
[1718220274109,4.8696,157.46,157.38,10.0]
[1718220274110,20.0,157.43,157.38,10.0]
[1718220274395,2.3503,157.43,157.38,10.0]
[1718220274597,2.3503,157.43,157.4,10.0]
[1718220274980,20.0,157.45,157.4,10.0]
[1718220274981,2.3504,157.42,157.4,10.0]
[1718220275170,2.3501,157.44,157.4,10.0]
[1718220275577,2.3502,157.43,157.4,10.0]
[1718220275997,2.3504,157.42,157.4,10.0]
[1718220276295,2.3503,157.43,157.4,10.0]
[1718220276794,2.3503,157.43,157.38,10.0]
[1718220277799,20.0,157.45,157.4,10.0]
[1718220277994,22.3498,157.46,157.42,10.0]
[1718220278189,2.3498,157.46,157.42,10.0]
[1718220278395,31.73837024,157.55,157.44,10.0]
[1718220278589,2.3494,157.49,157.44,10.0]
[1718220278896,2.3495,157.48,157.44,10.0]
[1718220279099,18.98,157.54,157.44,10.0]
[1718220279100,2.3493,157.5,157.44,10.0]
[1718220279401,2.3493,157.5,157.46,10.0]
[1718220279706,4.97464895,157.55,157.46,10.0]
[1718220279881,18.98,157.52,157.41,10.0]
[1718220280204,2.3504,157.42,157.39,10.0]
[1718220280382,2.3503,157.43,157.39,10.0]
[1718220280581,2.3503,157.43,157.37,6.9592]
[1718220280582,9.3988,157.47,157.41,10.0]
[1718220280802,2.35,157.45,157.39,10.0]
[1718220281001,20.0,157.46,157.39,10.0]
[1718220281301,2.3503,157.43,157.39,10.0]
[1718220281503,2.3504,157.42,157.39,10.0]
[1718220281899,2.3503,157.43,157.39,10.0]
[1718220282087,2.18247168,157.43,157.39,10.0]
[1718220282285,2.3503,157.43,157.39,10.0]
[1718220282479,20.0,157.43,157.39,10.0]
[1718220282687,2.3504,157.42,157.39,10.0]
[1718220282888,2.3505,157.41,157.39,10.0]
[1718220283418,2.3506,157.4,157.39,10.0]
[1718220283593,2.3515,157.34,157.33,6.9065]
[1718220283797,2.3521,157.31,157.28,16.9065]
[1718220283996,16.4606,157.35,157.28,16.9065]
[1718220283997,2.3522,157.3,157.28,6.9065]
[1718220284204,34.1098,157.34,157.28,6.9065]
[1718220284205,9.407,157.33,157.28,6.9065]
[1718220284404,2.3522,157.3,157.28,6.9065]
[1718220284801,20.0,157.32,157.28,6.9065]
[1718220284802,22.3519,157.32,157.28,6.9065]
[1718220284995,4.7025,157.37,157.28,16.9065]
[1718220285198,0.17,157.35,157.28,16.9065]
[1718220285484,11.7573,157.35,157.28,6.9065]
[1718220285684,2.352,157.32,157.28,6.9065]
[1718220286115,2.3522,157.3,157.28,6.9065]
[1718220286413,2.3522,157.3,157.27,0.03954582]
[1718220287106,2.3524,157.29,157.27,0.03954582]
[1718220287303,20.17,157.34,157.27,0.03954582]
[1718220287603,2.3522,157.3,157.27,0.03954582]
[1718220287816,2.3524,157.28,157.27,0.03954582]
[1718220288199,2.5224,157.28,157.27,0.03954582]
[1718220288386,3.0324,157.28,157.27,0.03954582]
[1718220288587,7.7373,157.28,157.27,0.03954582]
[1718220288791,23.0324,157.28,157.27,0.03954582]
[1718220289085,63.1846,157.28,157.27,0.03954582]
[1718220289716,27.7373,157.28,157.27,0.03954582]
[1718220289896,22.6924,157.28,157.27,0.03954582]
[1718220290095,22.5224,157.28,157.27,0.03954582]
[1718220290308,22.3524,157.28,157.27,0.03954582]
[1718220290914,20.0,157.28,157.27,0.03954582]
[1718220291117,2.3523,157.29,157.27,0.03954582]
[1718220291305,2.3521,157.31,157.27,0.03954582]
[1718220291507,9.4056,157.36,157.27,0.03954582]
[1718220291829,14.1147,157.28,157.27,0.03954582]
[1718220292017,7.0573,157.28,157.27,0.03954582]
[1718220292402,36.6372,157.28,157.27,0.03954582]
[1718220292621,37.1472,157.28,157.27,0.03954582]
[1718220292797,0.17,157.27,157.19,16.6459]
[1718220293001,0.17,157.27,157.19,6.6459]
[1718220293002,2.3536,157.21,157.19,6.6459]
[1718220293226,9.4126,157.24,157.19,6.6459]
[1718220293420,20.0,157.23,157.19,6.6459]
[1718220293625,20.0,157.23,157.17,10.0]
[1718220293928,2.3539,157.18,157.17,10.0]
[1718220294419,2.3537,157.2,157.17,9.6173]
[1718220294946,2.3538,157.19,157.17,9.6173]
[1718220295105,0.34,157.22,157.14,6.6003]
[1718220295106,11.7684,157.2,157.15,9.6173]
[1718220295307,2.354,157.18,157.15,9.6173]
[1718220295804,20.0,157.19,157.15,9.6173]
[1718220296020,2.3538,157.19,157.15,9.6173]
[1718220296206,4.8771,157.21,157.15,9.6173]
[1718220296412,2.354,157.18,157.15,9.6173]
[1718220296615,2.3538,157.19,157.15,9.6173]
[1718220297325,20.34,157.2,157.12,19.5421]
[1718220297326,2.3537,157.2,157.17,9.6173]
[1718220297509,2.3539,157.19,157.17,9.6173]
[1718220297705,2.3539,157.18,157.17,9.6173]
[1718220298217,2.3542,157.16,157.15,9.6173]
[1718220299125,0.34,157.16,157.13,9.6173]
[1718220299339,0.34,157.16,157.1,6.5864]
[1718220299340,2.355,157.11,157.06,9.6173]
[1718220299709,2.3549,157.12,157.06,9.6173]
[1718220300035,2.3548,157.13,157.06,11.973]
[1718220300203,22.3546,157.14,157.12,9.6173]
[1718220300406,21.1942,157.12,157.06,9.6173]
[1718220300727,2.3556,157.07,157.06,9.6173]
[1718220301256,2.356,157.05,157.01,9.6173]
[1718220301412,4.8813,157.07,156.99,16.7057]
[1718220301719,2.3561,157.04,156.99,16.7057]
[1718220301913,2.3565,157.01,157.0,9.6173]
[1718220302327,2.3572,156.97,156.94,16.3064]
[1718220302530,4.7143,156.97,156.89,9.6173]
[1718220302710,4.7143,156.97,156.83,7.1499]
[1718220302711,0.51,156.96,156.87,9.6173]
[1718220302904,2.3581,156.91,156.87,9.6173]
[1718220303107,2.3582,156.9,156.87,9.6173]
[1718220303333,0.17,156.89,156.81,9.6173]
[1718220303508,2.3588,156.86,156.81,9.6173]
[1718220303708,2.3589,156.86,156.83,9.6173]
[1718220303909,2.3589,156.86,156.8,0.03966436]
[1718220303910,20.0,156.9,156.85,9.6173]
[1718220304225,0.17,156.93,156.87,9.6173]
[1718220304523,0.17,156.92,156.85,9.6173]
[1718220304725,0.17,156.92,156.8,0.03966436]
[1718220304726,0.17,156.87,156.8,0.03966436]
[1718220304912,0.17,156.85,156.8,0.03966436]
[1718220305116,2.5295,156.81,156.8,0.03966436]
[1718220305317,2.3595,156.81,156.8,0.03966436]
[1718220305606,0.17,156.82,156.8,0.03966436]
[1718220305827,2.5295,156.81,156.8,0.03966436]
[1718220306008,24.2752,156.81,156.8,0.03966436]
[1718220306206,24.2752,156.81,156.72,11.9781]
[1718220306207,20.34,156.81,156.72,11.9781]
[1718220306407,2.3599,156.79,156.76,9.6173]
[1718220306835,22.6997,156.8,156.76,9.6173]
[1718220307047,0.34,156.8,156.76,9.6173]
[1718220307222,2.5297,156.8,156.76,9.6173]
[1718220307418,2.5297,156.8,156.72,2.3608]
[1718220307419,0.17,156.79,156.72,9.6173]
[1718220307621,2.3607,156.73,156.72,9.6173]
[1718220307827,0.17,156.73,156.7,9.6173]
[1718220308028,0.17,156.74,156.68,9.6173]
[1718220308342,2.3615,156.68,156.67,2.551488]
[1718220308516,2.3617,156.67,156.64,9.6173]
[1718220308716,2.3617,156.67,156.55,9.4533]
[1718220308717,2.3621,156.64,156.62,9.6173]
[1718220308933,45.17,156.72,156.5,12.39339931]
[1718220308934,2.3623,156.63,156.6,9.6173]
[1718220309140,2.362,156.65,156.6,9.6173]
[1718220309347,4.8929,156.69,156.62,9.6173]
[1718220309528,4.8929,156.69,156.6,9.6173]
[1718220309728,4.8929,156.69,156.56,9.6173]
[1718220309729,2.3626,156.61,156.56,9.6173]
[1718220310028,0.17,156.68,156.58,9.6173]
[1718220310234,7.254,156.69,156.58,9.6173]
[1718220310235,0.17,156.66,156.58,9.6173]
[1718220310575,2.3627,156.6,156.56,9.6173]
[1718220310738,0.34,156.66,156.56,9.6173]
[1718220310946,4.7221,156.71,156.63,9.6173]
[1718220311246,4.7221,156.71,156.5,116.5687]
[1718220311247,4.7215,156.73,156.65,9.6173]
[1718220311434,7.0827,156.72,156.63,9.6173]
[1718220311643,20.0,156.71,156.63,9.6173]
[1718220311841,4.7235,156.67,156.6,9.6173]
[1718220312058,20.0,156.68,156.62,9.6173]
[1718220312251,2.3615,156.68,156.62,9.6173]
[1718220312554,2.3607,156.73,156.66,9.6173]
[1718220312849,100.3827,156.87,156.7,9.6173]
[1718220313023,21.22748987,156.78,156.66,9.6173]
[1718220313224,18.98,156.77,156.6,9.6173]
[1718220313425,21.22748987,156.78,156.62,9.6173]
[1718220313426,2.3622,156.63,156.62,9.6173]
[1718220313632,46.33,156.71,156.6,9.6173]
[1718220313827,2.3625,156.61,156.6,9.6173]
[1718220314452,0.17,156.6,156.52,9.6173]
[1718220314768,2.3636,156.54,156.52,9.6173]
[1718220315068,0.34,156.55,156.46,9.6173]
[1718220315242,2.3649,156.45,156.44,9.6173]
[1718220315444,4.8995,156.47,156.38,9.6173]
[1718220315643,0.34,156.46,156.38,9.6173]
[1718220315897,0.34,156.46,156.38,8.1173]
[1718220315898,2.3657,156.4,156.38,8.1173]
[1718220316047,0.34,156.45,156.38,8.1173]
[1718220316048,2.3658,156.39,156.38,8.1173]
[1718220316248,2.3661,156.37,156.32,0.03978616]
[1718220316449,0.17,156.43,156.32,0.03978616]
[1718220316450,0.17,156.41,156.32,8.15708616]
[1718220316697,2.3653,156.43,156.37,8.1173]
[1718220317002,0.17,156.45,156.35,7.6173]
[1718220317151,4.7323,156.38,156.32,7.65708616]
[1718220317352,0.34,156.42,156.32,7.65708616]
[1718220317353,4.9011,156.42,156.32,0.03978616]
[1718220317550,2.3667,156.33,156.32,0.03978616]
[1718220317757,2.5367,156.33,156.32,0.03978616]
[1718220317958,89.1776,156.33,156.32,8.616e-05]
[1718220318168,2.3678,156.26,156.21,7.6173]
[1718220318373,0.17,156.32,156.21,7.6173]
[1718220318578,0.17,156.32,156.16,6.8954]
[1718220318579,2.3681,156.24,156.17,7.6173]
[1718220318787,2.3685,156.22,156.17,7.6173]
[1718220319083,2.3686,156.21,156.17,7.6173]
[1718220319393,0.17,156.3,156.22,7.6173]
[1718220319687,0.34,156.3,156.19,7.6173]
[1718220319872,4.906,156.25,156.17,7.6173]
[1718220320074,2.3687,156.21,156.17,7.6173]
[1718220320272,0.34,156.29,156.09,7.1472]
[1718220320273,0.34,156.29,156.2,7.6173]
[1718220320463,45.0,156.33,156.24,7.6173]
[1718220320667,45.0,156.33,156.12,46.8298]
[1718220320668,0.17,156.31,156.2,7.6173]
[1718220320880,2.5379,156.26,156.2,7.6173]
[1718220321177,0.34,156.25,156.18,7.6173]
[1718220321361,0.17,156.24,156.13,7.6173]
[1718220321561,2.3692,156.18,156.13,7.6173]
[1718220321766,2.369,156.19,156.13,7.6173]
[1718220321967,0.17,156.2,156.13,7.6173]
[1718220322181,0.34,156.2,156.11,7.6173]
[1718220322475,0.34,156.2,156.09,7.6173]
[1718220322476,2.3702,156.1,156.09,7.6173]
[1718220322676,0.17,156.12,156.09,7.6173]
[1718220322677,2.37,156.12,156.09,7.6173]
[1718220322863,0.34,156.19,156.13,7.6173]
[1718220323063,4.7384,156.17,156.11,7.6173]
[1718220323264,0.68,156.16,156.11,7.6173]
[1718220323579,20.68,156.16,156.11,7.6173]
[1718220323777,21.3196,156.2,156.09,7.6173]
[1718220323981,4.7366,156.23,156.16,7.6173]
[1718220324165,140.57501658,156.32,156.03,7.1139]
[1718220324166,0.8856,156.22,156.18,7.6173]
[1718220324365,0.8856,156.22,156.2,7.6173]
[1718220324587,0.8856,156.22,156.18,7.6173]
[1718220324792,0.8856,156.22,156.06,19.483]
[1718220324793,14.2072,156.26,156.16,7.6173]
[1718220325086,1.09226438,156.34,156.18,7.6173]
[1718220325087,4.7347,156.29,156.18,7.6173]
[1718220325285,28.44226438,156.34,156.2,7.6173]
[1718220325605,16.05334143,156.29,156.16,7.6173]
[1718220325791,2.3695,156.15,156.12,7.6173]
[1718220325999,9.4753,156.2,156.12,7.6173]
[1718220326289,4.7366,156.23,156.14,7.6173]
[1718220326496,2.3692,156.18,156.14,7.6173]
[1718220326661,0.17,156.18,156.12,7.6173]
[1718220326861,0.68,156.18,156.12,7.6173]
[1718220327063,0.51,156.18,156.12,7.6173]
[1718220327288,0.17,156.21,156.14,7.6173]
[1718220327494,2.3695,156.15,156.14,7.6173]
[1718220327668,20.0,156.24,156.12,7.6173]
[1718220328000,4.7375,156.2,156.12,7.6173]
[1718220328186,20.0,156.2,156.12,7.6173]
[1718220328393,2.3684,156.22,156.15,7.6173]
[1718220328687,2.3686,156.21,156.18,7.6173]
[1718220329097,4.7357,156.26,156.12,7.6173]
[1718220329314,2.3689,156.19,156.12,7.6173]
[1718220329525,2.3698,156.13,156.12,7.6173]
[1718220329809,118.98,156.17,156.02,7.6173]
[1718220329995,2.3713,156.03,156.02,7.6173]
[1718220330198,2.3716,156.01,156.0,7.6173]
[1718220330520,0.17,156.09,156.0,7.6173]
[1718220330727,2.3716,156.02,156.0,7.6173]
[1718220330885,2.3716,156.02,155.94,2.3725]
[1718220330886,4.7416,156.07,156.02,7.6173]
[1718220331086,2.3713,156.03,156.02,7.6173]
[1718220331486,0.17,156.06,156.0,7.6173]
[1718220331487,2.3716,156.01,156.0,7.6173]
[1718220331688,4.9136,156.0,155.89,7.6173]
[1718220331889,2.3732,155.91,155.89,7.6173]
[1718220332107,2.3732,155.91,155.88,7.6173]
[1718220332314,4.7451,155.95,155.9,7.6173]
[1718220332493,2.3729,155.93,155.9,7.6173]
[1718220332691,20.34,156.0,155.92,7.6173]
[1718220332893,4.744,155.99,155.88,7.6173]
[1718220333197,0.34,155.99,155.88,7.6173]
[1718220333410,0.17,155.97,155.88,7.6173]
[1718220333626,0.17,155.97,155.85,0.03990614]
[1718220333627,5.0846,155.97,155.86,7.6173]
[1718220333793,2.3739,155.86,155.85,0.03990614]
[1718220333992,24.2491,155.86,155.85,6.14e-06]
[1718220334219,24.4191,155.86,155.85,6.14e-06]
[1718220334404,27.8017,155.86,155.85,6.14e-06]
[1718220334610,2.3749,155.79,155.78,7.0512]
[1718220334903,2.7149,155.79,155.78,7.0512]
[1718220335242,2.3748,155.8,155.78,6.5512]
[1718220335522,0.34,155.79,155.78,6.5512]
[1718220335698,45.51,155.79,155.78,6.5512]
[1718220335898,0.51,155.79,155.78,6.5512]
[1718220336118,2.3748,155.8,155.78,6.5512]
[1718220336326,8.94432086,155.84,155.78,14.1685]
[1718220336491,8.94432086,155.84,155.8,7.6173]
[1718220336691,32.0962,155.92,155.8,7.6173]
[1718220336892,32.0962,155.92,155.78,6.5512]
[1718220336893,5.23144103,155.95,155.82,7.6173]
[1718220337094,2.3827,156.01,155.8,7.6173]
[1718220337095,4.7463,155.91,155.8,7.6173]
[1718220337295,4.7481,155.86,155.78,6.5512]
[1718220337689,4.7468,155.9,155.78,6.5512]
[1718220337893,6.56497246,155.93,155.84,7.6173]
[1718220338221,6.56497246,155.93,155.78,6.5512]
[1718220338222,2.3734,155.9,155.81,7.6173]
[1718220338389,2.3726,155.95,155.88,7.6173]
[1718220338592,27.35,156.0,155.88,7.6173]
[1718220338802,9.4915,155.93,155.84,7.6173]
[1718220339097,6.56291187,155.99,155.84,7.6173]
[1718220339301,7.1194,155.91,155.84,7.6173]
[1718220339503,4.7469,155.9,155.84,7.6173]
[1718220339716,2.374,155.85,155.84,7.6173]
[1718220339922,27.35,155.92,155.84,7.6173]
[1718220340233,2.374,155.85,155.84,7.6173]
[1718220340514,27.35,155.92,155.86,7.6173]
[1718220340515,1.09276437,155.92,155.86,7.6173]
[1718220340718,2.3728,155.93,155.92,7.6173]
[1718220341026,7.1188,155.93,155.84,7.6173]
[1718220341210,12.3749,155.93,155.86,7.6173]
[1718220341415,12.3749,155.93,155.89,7.6173]
[1718220341594,6.56275959,155.98,155.79,20.0]
[1718220341595,4.7448,155.96,155.87,7.6173]
[1718220341804,2.3733,155.9,155.87,7.6173]
[1718220342004,19.28,155.95,155.87,7.6173]
[1718220342190,12.3749,155.97,155.89,7.6173]
[1718220342392,14.65137024,155.94,155.89,7.6173]
[1718220342601,12.3749,155.97,155.92,7.6173]
[1718220342807,19.28,155.99,155.92,7.6173]
[1718220342999,2.3724,155.96,155.92,7.6173]
[1718220343206,7.6173,155.97,155.92,7.6173]
[1718220343423,6.55756012,156.03,155.92,7.6173]
[1718220343424,6.55756012,156.03,155.92,9.9902]
[1718220343595,2.3717,156.01,155.86,110.17]
[1718220343794,4.742,156.06,155.9,0.17]
[1718220343795,16.9548,156.06,155.9,0.17]
[1718220344031,16.9548,156.06,155.87,0.34]
[1718220344193,16.9548,156.06,155.93,2.3727]
[1718220344194,2.3715,156.02,155.93,2.3727]
[1718220344401,16.9548,156.06,155.9,0.17]
[1718220344601,19.3255,156.07,155.92,4.746]
[1718220344828,16.9548,156.07,155.91,20.0]
[1718220345028,4.7418,156.06,155.91,2.373]
[1718220345326,2.3724,155.96,155.87,2.3737]
[1718220345530,27.35,156.04,155.85,0.17]
[1718220345704,14.65137024,156.02,155.91,2.373]
[1718220345908,17.02297024,156.02,155.93,2.3728]
[1718220346125,17.02287024,156.02,155.87,20.17]
[1718220346429,16.9548,156.07,155.95,2.3724]
[1718220346612,16.9548,156.07,155.95,0.17]
[1718220346814,16.9548,156.07,155.94,0.17]
[1718220347023,16.9548,156.07,155.97,10.17]
[1718220347206,16.9548,156.07,155.99,0.17]
[1718220347412,16.9548,156.07,155.98,20.51]
[1718220347824,16.9548,156.07,155.98,0.51]
[1718220348407,16.9548,156.07,155.98,20.51]
[1718220348831,10.0,156.06,155.89,100.0]
[1718220349141,16.9548,156.07,155.86,127.35]
[1718220349313,2.3713,156.03,155.87,100.0]
[1718220349642,2.3711,156.05,155.89,100.0]
[1718220349815,16.9548,156.07,155.92,100.0]
[1718220350013,16.9548,156.07,155.94,100.0]
[1718220350243,16.9548,156.07,155.96,100.0]
[1718220350543,16.9548,156.07,155.98,100.0]
[1718220350711,16.9548,156.07,155.86,27.35]
[1718220350712,2.3712,156.04,155.88,100.0]
[1718220350912,2.3713,156.03,155.86,127.35]
[1718220351124,10.0,156.06,155.87,100.0]
[1718220351332,10.0,156.06,155.86,27.35]
[1718220351333,2.3716,156.01,155.86,27.35]
[1718220351634,21.6964,156.07,155.86,27.35]
[1718220351635,10.0,156.06,155.86,127.35]